fUSD/lending_fUSD_20250611
["ID","MTS","AMOUNT","RATE_DAILY","PERIOD"]
[365410397,1749658269048,-543.72,0.00019506,2]
[365410398,1749658269057,-667.73,0.00019506,2]
[365410399,1749658269066,-1058.01,0.00019506,2]
[365410400,1749658269075,-490.0,0.00019506,2]
[365410401,1749658269084,-868.13,0.00019506,2]
[365410402,1749658269093,-620.94,0.00019506,2]
[365410403,1749658269102,-1384.62,0.00019506,2]
[365410404,1749658269111,-805.79,0.00019506,2]
[365410405,1749658269120,-500.8,0.00019506,2]
[365410406,1749658269129,-681.56,0.00019506,2]
[365410407,1749658269140,-1135.59,0.00019506,2]
[365410408,1749658269159,-490.0,0.00019506,2]
[365410409,1749658269180,-830.62,0.00019506,2]
[365410410,1749658269199,-490.0,0.00019506,2]
[365410411,1749658269220,-380.0,0.00019506,2]
[365410412,1749658269240,-597.88,0.00019506,2]
[365410413,1749658269260,-490.0,0.00019506,2]
[365410414,1749658269280,-490.0,0.00019506,2]
[365410415,1749658269299,-2882.52,0.00019506,2]
[365410416,1749658269320,-576.22,0.00019506,2]
[365410417,1749658269341,-490.0,0.00019506,2]
[365410418,1749658269363,-490.0,0.00019506,2]
[365410419,1749658269385,-490.0,0.00019506,2]
[365410420,1749658269406,-550.76,0.00019506,2]
[365410421,1749658269427,-490.0,0.00019506,2]
[365410422,1749658269448,-490.0,0.00019506,2]
[365410423,1749658269631,-1779.79,0.00019506,2]
[365410424,1749658269653,-490.0,0.00019506,2]
[365410425,1749658269676,-580.4,0.00019506,2]
[365410426,1749658269699,-961.44,0.00019506,2]
[365410427,1749658269721,-490.0,0.00019506,2]
[365410428,1749658269744,-490.0,0.00019506,2]
[365410429,1749658269762,-5081.16,0.00019506,2]
[365410430,1749658269772,-490.0,0.00019506,2]
[365410431,1749658269782,-567.4,0.00019506,2]
[365410432,1749658269792,-490.0,0.00019506,2]
[365410433,1749658269801,-490.0,0.00019506,2]
[365410434,1749658269810,-786.54,0.00019506,2]
[365410435,1749658269820,-490.0,0.00019506,2]
[365410436,1749658269829,-490.0,0.00019506,2]
[365410437,1749658269838,-435.44407391,0.00019506,2]
[365410438,1749658269848,-490.0,0.00019506,2]
[365410439,1749658269857,-636.42,0.00019506,2]
[365410440,1749658269866,-490.0,0.00019506,2]
[365410441,1749658269875,-428.83298494,0.00019506,2]
[365410442,1749658269884,-490.0,0.00019506,2]
[365410443,1749658269893,-607.89,0.00019506,2]
[365410444,1749658269903,-490.0,0.00019506,2]
[365410445,1749658269912,-490.0,0.00019506,2]
[365410446,1749658269921,-490.0,0.00019506,2]
[365410447,1749658269931,-490.0,0.00019506,2]
[365410448,1749658269940,-490.0,0.00019506,2]
[365410449,1749658269950,-490.0,0.00019506,2]
[365410450,1749658269960,-941.93,0.00019506,2]
[365410451,1749658269970,-1718.77,0.00019506,2]
[365410452,1749658269980,-1429.92,0.00019506,2]
[365410453,1749658269989,-1779.95,0.00019506,2]
[365410454,1749658269999,-490.0,0.00019506,2]
[365410455,1749658270008,-551.88,0.00019506,2]
[365410456,1749658270018,-490.0,0.00019506,2]
[365410457,1749658270029,-490.0,0.00019506,2]
[365410458,1749658270038,-490.0,0.00019506,2]
[365410459,1749658270048,-490.0,0.00019506,2]
[365410460,1749658270057,-966.86,0.00019506,2]
[365410461,1749658270066,-760.22,0.00019506,2]
[365410462,1749658270076,-543.51,0.00019506,2]
[365410463,1749658270085,-490.0,0.00019506,2]
[365410464,1749658270095,-589.73,0.00019506,2]
[365410465,1749658270104,-490.0,0.00019506,2]
[365410466,1749658270113,-888.36,0.00019506,2]
[365410467,1749658270122,-2161.81,0.00019506,2]
[365410468,1749658270131,-490.0,0.00019506,2]
[365410469,1749658270140,-490.0,0.00019506,2]
[365410470,1749658270149,-490.0,0.00019506,2]
[365410471,1749658270159,-490.0,0.00019506,2]
[365410472,1749658270169,-490.0,0.00019506,2]
[365410473,1749658270178,-490.0,0.00019506,2]
[365410474,1749658270198,-825.74,0.00019506,2]
[365410475,1749658270210,-490.0,0.00019506,2]
[365410476,1749658270220,-490.0,0.00019506,2]
[365410477,1749658270230,-249.44403363,0.00019506,2]
[365410478,1749658270240,-1915.5,0.00019506,2]
[365410479,1749658270250,-490.0,0.00019506,2]
[365410480,1749658270260,-490.0,0.00019506,2]
[365410481,1749658270270,-490.0,0.00019506,2]
[365410482,1749658270283,-490.0,0.00019506,2]
[365410483,1749658270292,-490.0,0.00019506,2]
[365410484,1749658270302,-490.0,0.00019506,2]
[365410485,1749658270312,-398.56304687,0.00019506,2]
[365410486,1749658270322,-490.0,0.00019506,2]
[365410487,1749658270332,-1022.71,0.00019506,2]
[365410488,1749658270342,-676.56,0.00019506,2]
[365410489,1749658270351,-549.94,0.00019506,2]
[365410490,1749658270361,-490.0,0.00019506,2]
[365410491,1749658270371,-490.0,0.00019506,2]
[365410492,1749658270380,-490.0,0.00019506,2]
[365410493,1749658270390,-895.4,0.00019506,2]
[365410494,1749658270399,-490.0,0.00019506,2]
[365410495,1749658270409,-490.0,0.00019506,2]
[365410496,1749658270419,-947.1,0.00019506,2]
[365410497,1749658270428,-490.0,0.00019506,2]
[365410498,1749658270438,-2636.92,0.00019506,2]
[365410499,1749658270447,-354.25179614,0.00019506,2]
[365410500,1749658270457,-783.98,0.00019506,2]
[365410501,1749658270466,-2087.38,0.00019506,2]
[365410502,1749658270475,-490.0,0.00019506,2]
[365410503,1749658270485,-916.1,0.00019506,2]
[365410504,1749658270494,-490.0,0.00019506,2]
[365410505,1749658270504,-526.65,0.00019506,2]
[365410506,1749658270517,-490.0,0.00019506,2]
[365410507,1749658270528,-490.0,0.00019506,2]
[365410508,1749658270537,-490.0,0.00019506,2]
[365410509,1749658270547,-792.49,0.00019506,2]
[365410510,1749658270556,-490.0,0.00019506,2]
[365410511,1749658270567,-490.0,0.00019506,2]
[365410512,1749658270577,-490.0,0.00019506,2]
[365410513,1749658270588,-490.0,0.00019506,2]
[365410514,1749658270599,-8804.44,0.00019506,2]
[365410515,1749658270608,-1230.28,0.00019506,2]
[365410516,1749658270618,-490.0,0.00019506,2]
[365410517,1749658270628,-7727.19,0.00019506,2]
[365410518,1749658270639,-1882.48,0.00019506,2]
[365410519,1749658270649,-984.48,0.00019506,2]
[365410520,1749658270659,-1046.77,0.00019506,2]
[365410521,1749658270669,-490.0,0.00019506,2]
[365410522,1749658270680,-490.0,0.00019506,2]
[365410523,1749658270690,-490.0,0.00019506,2]
[365410524,1749658270700,-490.0,0.00019506,2]
[365410525,1749658270710,-490.0,0.00019506,2]
[365410526,1749658270720,-490.0,0.00019506,2]
[365410527,1749658270730,-490.0,0.00019506,2]
[365410528,1749658270739,-490.0,0.00019506,2]
[365410529,1749658270749,-652.38,0.00019506,2]
[365410530,1749658270758,-1903.37,0.00019506,2]
[365410531,1749658270768,-490.0,0.00019506,2]
[365410532,1749658270780,-490.0,0.00019506,2]
[365410533,1749658270790,-663.2,0.00019506,2]
[365410534,1749658270800,-490.0,0.00019506,2]
[365410535,1749658270809,-490.0,0.00019506,2]
[365410536,1749658270819,-490.0,0.00019506,2]
[365410537,1749658270828,-939.39,0.00019506,2]
[365410538,1749658270838,-490.0,0.00019506,2]
[365410539,1749658270848,-490.0,0.00019506,2]
[365410540,1749658270858,-1699.5,0.00019506,2]
[365410541,1749658270868,-490.0,0.00019506,2]
[365410542,1749658270878,-490.0,0.00019506,2]
[365410543,1749658270888,-668.44,0.00019506,2]
[365410544,1749658270898,-490.0,0.00019506,2]
[365410545,1749658270907,-490.0,0.00019506,2]
[365410546,1749658270917,-800.92,0.00019506,2]
[365410547,1749658270927,-930.66,0.00019506,2]
[365410548,1749658270936,-751.17,0.00019506,2]
[365410549,1749658270946,-529.9576666,0.00019506,2]
[365410550,1749658270955,-490.0,0.00019506,2]
[365410551,1749658270965,-490.0,0.00019506,2]
[365410552,1749658270974,-428.392944,0.00019506,2]
[365410553,1749658270983,-490.0,0.00019506,2]
[365410554,1749658270993,-1035.48,0.00019506,2]
[365410555,1749658271002,-490.0,0.00019506,2]
[365410556,1749658271012,-490.0,0.00019506,2]
[365410557,1749658271021,-490.0,0.00019506,2]
[365410558,1749658271032,-533.29,0.00019506,2]
[365410559,1749658271041,-490.0,0.00019506,2]
[365410560,1749658271051,-1017.86,0.00019506,2]
[365410561,1749658271061,-490.0,0.00019506,2]
[365410562,1749658271071,-490.0,0.00019506,2]
[365410563,1749658271080,-490.0,0.00019506,2]
[365410564,1749658271089,-490.0,0.00019506,2]
[365410565,1749658271100,-490.0,0.00019506,2]
[365410566,1749658271109,-490.0,0.00019506,2]
[365410567,1749658271118,-300.57,0.00019506,2]
[365410568,1749658271128,-187.5,0.00019509,2]
[365410569,1749658271138,-250.0,0.00019532,2]
[365410570,1749658271147,-369.44632977,0.00019535,2]
[365410571,1749658271156,-11717.27271176,0.00019535,2]
[365410572,1749658271166,-160.30486295,0.00019571,2]
[365410573,1749658271175,-500.0,0.00019573,2]
[365410574,1749658271184,-304.75100256,0.00019573,2]
[365410575,1749658271193,-502.81335354,0.00019573,2]
[365410576,1749658271202,-500.0,0.00019573,2]
[365410577,1749658271212,-500.0,0.00019573,2]
[365410578,1749658271221,-500.0,0.00019573,2]
[365410579,1749658271231,-505.87162915,0.00019573,2]
[365410580,1749658271240,-500.0,0.00019573,2]
[365410581,1749658271249,-212.0,0.0001958,2]
[365410582,1749658271259,-810.915145,0.00019599,2]
[365410583,1749658271268,-369.44632977,0.00019626,2]
[365410584,1749658271279,-11717.27271176,0.00019626,2]
[365410585,1749658271288,-286.3477586,0.00019644,4]
[365410586,1749658271298,-277.25568285,0.00019644,4]
[365410587,1749658271307,-500.0,0.0001967,2]
[365410588,1749658271316,-500.0,0.0001967,2]
[365410589,1749658271326,-500.0,0.0001967,2]
[365410590,1749658271335,-541.62674553,0.0001967,2]
[365410591,1749658271345,-500.0,0.0001967,2]
[365410592,1749658271354,-4012.22,0.0001967,2]
[365410593,1749658271363,-4012.22,0.0001967,2]
[365410594,1749658271373,-500.0,0.0001967,2]
[365410595,1749658271382,-7514.95,0.0001967,2]
[365410596,1749658271392,-7514.95,0.0001967,2]
[365410597,1749658271402,-740.16,0.00019671,2]
[365410598,1749658271411,-418.37529231,0.00019671,2]
[365410599,1749658271421,-490.0,0.00019671,2]
[365410600,1749658271430,-490.0,0.00019671,2]
[365410601,1749658271440,-272.30493317,0.00019671,2]
[365410602,1749658271450,-490.0,0.00019671,2]
[365410603,1749658271460,-192.40040457,0.00019671,2]
[365410604,1749658271469,-490.0,0.00019671,2]
[365410605,1749658271479,-490.0,0.00019671,2]
[365410606,1749658271488,-350.0,0.00019671,2]
[365410607,1749658271498,-406.33266875,0.00019671,2]
[365410608,1749658271511,-490.0,0.00019671,2]
[365410609,1749658271520,-490.0,0.00019671,2]
[365410610,1749658271532,-619.35512799,0.00019671,2]
[365410611,1749658271541,-490.0,0.00019671,2]
[365410612,1749658271552,-490.0,0.00019671,2]
[365410613,1749658271561,-490.0,0.00019671,2]
[365410614,1749658271570,-490.0,0.00019671,2]
[365410615,1749658271580,-490.0,0.00019671,2]
[365410616,1749658271591,-490.0,0.00019671,2]
[365410617,1749658271601,-490.0,0.00019671,2]
[365410618,1749658271610,-490.0,0.00019671,2]
[365410619,1749658271619,-374.57424883,0.00019671,2]
[365410620,1749658271628,-490.0,0.00019671,2]
[365410621,1749658271637,-490.0,0.00019671,2]
[365410622,1749658271646,-490.0,0.00019671,2]
[365410623,1749658271655,-462.39530907,0.00019671,2]
[365410624,1749658271664,-490.0,0.00019671,2]
[365410625,1749658271673,-490.0,0.00019671,2]
[365410626,1749658271682,-490.0,0.00019671,2]
[365410627,1749658271691,-490.0,0.00019671,2]
[365410628,1749658271701,-490.0,0.00019671,2]
[365410629,1749658271711,-510.97,0.00019671,2]
[365410630,1749658271720,-490.0,0.00019671,2]
[365410631,1749658271731,-490.0,0.00019671,2]
[365410632,1749658271742,-490.0,0.00019671,2]
[365410633,1749658271752,-490.0,0.00019671,2]
[365410634,1749658271761,-490.0,0.00019671,2]
[365410635,1749658271772,-490.0,0.00019671,2]
[365410636,1749658271783,-470.39332552,0.00019671,2]
[365410637,1749658271792,-490.0,0.00019671,2]
[365410638,1749658271802,-490.0,0.00019671,2]
[365410639,1749658271812,-490.0,0.00019671,2]
[365410640,1749658271822,-490.0,0.00019671,2]
[365410641,1749658271832,-490.0,0.00019671,2]
[365410642,1749658271841,-490.0,0.00019671,2]
[365410643,1749658271851,-490.0,0.00019671,2]
[365410644,1749658271861,-358.01737802,0.00019671,2]
[365410645,1749658271871,-490.0,0.00019671,2]
[365410646,1749658271880,-490.0,0.00019671,2]
[365410647,1749658271890,-490.0,0.00019671,2]
[365410648,1749658271900,-490.0,0.00019671,2]
[365410649,1749658271910,-490.0,0.00019671,2]
[365410650,1749658271919,-490.0,0.00019671,2]
[365410651,1749658271929,-490.0,0.00019671,2]
[365410652,1749658271938,-490.0,0.00019671,2]
[365410653,1749658271948,-490.0,0.00019671,2]
[365410654,1749658271958,-490.0,0.00019671,2]
[365410655,1749658271968,-490.0,0.00019671,2]
[365410656,1749658271978,-589.3,0.00019671,2]
[365410657,1749658271987,-490.0,0.00019671,2]
[365410658,1749658271997,-490.0,0.00019671,2]
[365410659,1749658272006,-490.0,0.00019671,2]
[365410660,1749658272015,-490.0,0.00019671,2]
[365410661,1749658272026,-490.0,0.00019671,2]
[365410662,1749658272035,-490.0,0.00019671,2]
[365410663,1749658272045,-490.0,0.00019671,2]
[365410664,1749658272054,-489.34428304,0.00019671,2]
[365410665,1749658272064,-385.72205612,0.00019671,2]
[365410666,1749658272073,-413.70842636,0.00019671,2]
[365410667,1749658272084,-490.0,0.00019671,2]
[365410668,1749658272093,-490.0,0.00019671,2]
[365410669,1749658272102,-490.0,0.00019671,2]
[365410670,1749658272111,-490.0,0.00019671,2]
[365410671,1749658272123,-490.0,0.00019671,2]
[365410672,1749658272133,-490.0,0.00019671,2]
[365410673,1749658272142,-490.0,0.00019671,2]
[365410674,1749658272152,-490.0,0.00019671,2]
[365410675,1749658272161,-490.0,0.00019671,2]
[365410676,1749658272170,-490.0,0.00019671,2]
[365410677,1749658272180,-490.0,0.00019671,2]
[365410678,1749658272189,-525.06,0.00019671,2]
[365410679,1749658272198,-490.0,0.00019671,2]
[365410680,1749658272208,-348.51499318,0.00019671,2]
[365410681,1749658272217,-490.0,0.00019671,2]
[365410682,1749658272227,-490.0,0.00019671,2]
[365410683,1749658272237,-490.0,0.00019671,2]
[365410684,1749658272422,-490.0,0.00019671,2]
[365410685,1749658272432,-490.0,0.00019671,2]
[365410686,1749658272442,-490.0,0.00019671,2]
[365410687,1749658272452,-797.4,0.00019671,2]
[365410688,1749658272462,-490.0,0.00019671,2]
[365410689,1749658272472,-490.0,0.00019671,2]
[365410690,1749658272482,-490.0,0.00019671,2]
[365410691,1749658272492,-490.0,0.00019671,2]
[365410692,1749658272501,-490.0,0.00019671,2]
[365410693,1749658272516,-624.98,0.00019671,2]
[365410694,1749658272528,-490.0,0.00019671,2]
[365410695,1749658272538,-490.0,0.00019671,2]
[365410696,1749658272547,-490.0,0.00019671,2]
[365410697,1749658272558,-490.0,0.00019671,2]
[365410698,1749658272567,-490.0,0.00019671,2]
[365410699,1749658272577,-576.0145039,0.00019671,2]
[365410700,1749658272588,-490.0,0.00019671,2]
[365410701,1749658272598,-490.0,0.00019671,2]
[365410702,1749658272607,-490.0,0.00019671,2]
[365410703,1749658272617,-490.0,0.00019671,2]
[365410704,1749658272627,-490.0,0.00019671,2]
[365410705,1749658272636,-490.0,0.00019671,2]
[365410706,1749658272646,-1463.23,0.00019671,2]
[365410707,1749658272655,-490.0,0.00019671,2]
[365410708,1749658272665,-490.0,0.00019671,2]
[365410709,1749658272674,-490.0,0.00019671,2]
[365410710,1749658272683,-490.0,0.00019671,2]
[365410711,1749658272692,-490.0,0.00019671,2]
[365410712,1749658272702,-283.84581064,0.00019671,2]
[365410713,1749658272712,-490.0,0.00019671,2]
[365410714,1749658272721,-490.0,0.00019671,2]
[365410715,1749658272732,-490.0,0.00019671,2]
[365410716,1749658272741,-635.73,0.00019671,2]
[365410717,1749658272751,-490.0,0.00019671,2]
[365410718,1749658272761,-490.0,0.00019671,2]
[365410719,1749658272771,-704.02,0.00019671,2]
[365410720,1749658272782,-977.89,0.00019671,2]
[365410721,1749658272792,-561.3271198,0.00019671,2]
[365410722,1749658272801,-490.0,0.00019671,2]
[365410723,1749658272812,-490.0,0.00019671,2]
[365410724,1749658272821,-490.0,0.00019671,2]
[365410725,1749658272831,-490.0,0.00019671,2]
[365410726,1749658272841,-490.0,0.00019671,2]
[365410727,1749658272850,-490.0,0.00019671,2]
[365410728,1749658272859,-490.0,0.00019671,2]
[365410729,1749658272869,-490.0,0.00019671,2]
[365410730,1749658272878,-490.0,0.00019671,2]
[365410731,1749658272887,-490.0,0.00019671,2]
[365410732,1749658272896,-490.0,0.00019671,2]
[365410733,1749658272906,-490.0,0.00019671,2]
[365410734,1749658272916,-490.0,0.00019671,2]
[365410735,1749658272925,-490.0,0.00019671,2]
[365410736,1749658272935,-490.0,0.00019671,2]
[365410737,1749658272944,-490.0,0.00019671,2]
[365410738,1749658272954,-554.63,0.00019671,2]
[365410739,1749658272964,-250.0,0.00019671,2]
[365410740,1749658272973,-490.0,0.00019671,2]
[365410741,1749658272982,-490.0,0.00019671,2]
[365410742,1749658272992,-490.0,0.00019671,2]
[365410743,1749658273002,-490.0,0.00019671,2]
[365410744,1749658273012,-490.0,0.00019671,2]
[365410745,1749658273022,-490.0,0.00019671,2]
[365410746,1749658273032,-490.0,0.00019671,2]
[365410747,1749658273042,-818.43,0.00019671,2]
[365410748,1749658273052,-490.0,0.00019671,2]
[365410749,1749658273061,-490.0,0.00019671,2]
[365410750,1749658273071,-490.0,0.00019671,2]
[365410751,1749658273080,-490.0,0.00019671,2]
[365410752,1749658273090,-539.1,0.00019671,2]
[365410753,1749658273099,-490.0,0.00019671,2]
[365410754,1749658273109,-433.04782917,0.00019671,2]
[365410755,1749658273119,-490.0,0.00019671,2]
[365410756,1749658273128,-490.0,0.00019671,2]
[365410757,1749658273138,-490.0,0.00019671,2]
[365410758,1749658273147,-490.0,0.00019671,2]
[365410759,1749658273157,-640.86,0.00019671,2]
[365410760,1749658273166,-470.0,0.00019671,2]
[365410761,1749658273176,-490.0,0.00019671,2]
[365410762,1749658273186,-490.0,0.00019671,2]
[365410763,1749658273196,-490.0,0.00019671,2]
[365410764,1749658273205,-286.77232411,0.00019671,2]
[365410765,1749658273216,-490.0,0.00019671,2]
[365410766,1749658273226,-490.0,0.00019671,2]
[365410767,1749658273235,-490.0,0.00019671,2]
[365410768,1749658273245,-702.06,0.00019671,2]
[365410769,1749658273254,-557.19,0.00019671,2]
[365410770,1749658273263,-490.0,0.00019671,2]
[365410771,1749658273273,-490.0,0.00019671,2]
[365410772,1749658273284,-490.0,0.00019671,2]
[365410773,1749658273294,-490.0,0.00019671,2]
[365410774,1749658273303,-490.0,0.00019671,2]
[365410775,1749658273312,-490.0,0.00019671,2]
[365410776,1749658273322,-490.0,0.00019671,2]
[365410777,1749658273331,-670.47,0.00019671,2]
[365410778,1749658273340,-490.0,0.00019671,2]
[365410779,1749658273349,-490.0,0.00019671,2]
[365410780,1749658273359,-490.0,0.00019671,2]
[365410781,1749658273368,-519.6,0.00019671,2]
[365410782,1749658273377,-450.0,0.00019671,2]
[365410783,1749658273386,-958.71,0.00019671,2]
[365410784,1749658273395,-490.0,0.00019671,2]
[365410785,1749658273404,-490.0,0.00019671,2]
[365410786,1749658273414,-490.0,0.00019671,2]
[365410787,1749658273423,-490.0,0.00019671,2]
[365410788,1749658273433,-490.0,0.00019671,2]
[365410789,1749658273442,-490.0,0.00019671,2]
[365410790,1749658273452,-490.0,0.00019671,2]
[365410791,1749658273461,-490.0,0.00019671,2]
[365410792,1749658273471,-490.0,0.00019671,2]
[365410793,1749658273481,-490.0,0.00019671,2]
[365410794,1749658273490,-490.0,0.00019671,2]
[365410795,1749658273499,-490.0,0.00019671,2]
[365410796,1749658273513,-490.0,0.00019671,2]
[365410797,1749658273522,-490.0,0.00019671,2]
[365410798,1749658273538,-490.0,0.00019671,2]
[365410799,1749658273549,-490.0,0.00019671,2]
[365410800,1749658273559,-490.0,0.00019671,2]
[365410801,1749658273569,-490.0,0.00019671,2]
[365410802,1749658273579,-490.0,0.00019671,2]
[365410803,1749658273591,-490.0,0.00019671,2]
[365410804,1749658273600,-490.0,0.00019671,2]
[365410805,1749658273611,-490.0,0.00019671,2]
[365410806,1749658273627,-490.0,0.00019671,2]
[365410807,1749658273637,-560.25,0.00019671,2]
[365410808,1749658273647,-490.0,0.00019671,2]
[365410809,1749658273657,-490.0,0.00019671,2]
[365410810,1749658273666,-539.7,0.00019671,2]
[365410811,1749658273676,-490.0,0.00019671,2]
[365410812,1749658273686,-341.15993471,0.00019671,2]
[365410813,1749658273695,-490.0,0.00019671,2]
[365410814,1749658273705,-414.94042073,0.00019671,2]
[365410815,1749658273715,-490.0,0.00019671,2]
[365410816,1749658273725,-490.0,0.00019671,2]
[365410817,1749658273735,-490.0,0.00019671,2]
[365410818,1749658273745,-490.0,0.00019671,2]
[365410819,1749658273754,-490.0,0.00019671,2]
[365410820,1749658273764,-490.0,0.00019671,2]
[365410821,1749658273773,-490.0,0.00019671,2]
[365410822,1749658273790,-490.0,0.00019671,2]
[365410823,1749658273799,-490.0,0.00019671,2]
[365410824,1749658273808,-390.0,0.00019671,2]
[365410825,1749658273818,-620.04,0.00019671,2]
[365410826,1749658273827,-490.0,0.00019671,2]
[365410827,1749658273836,-490.0,0.00019671,2]
[365410828,1749658273846,-490.0,0.00019671,2]
[365410829,1749658273855,-490.0,0.00019671,2]
[365410830,1749658273864,-624.79,0.00019671,2]
[365410831,1749658273873,-490.0,0.00019671,2]
[365410832,1749658273882,-490.0,0.00019671,2]
[365410833,1749658273892,-490.0,0.00019671,2]
[365410834,1749658273902,-490.0,0.00019671,2]
[365410835,1749658273911,-490.0,0.00019671,2]
[365410836,1749658273921,-490.0,0.00019671,2]
[365410837,1749658273930,-490.0,0.00019671,2]
[365410838,1749658273939,-490.0,0.00019671,2]
[365410839,1749658273948,-490.0,0.00019671,2]
[365410840,1749658273958,-490.0,0.00019671,2]
[365410841,1749658273967,-490.0,0.00019671,2]
[365410842,1749658273976,-490.0,0.00019671,2]
[365410843,1749658273986,-490.0,0.00019671,2]
[365410844,1749658273995,-490.0,0.00019671,2]
[365410845,1749658274004,-645.8,0.00019671,2]
[365410846,1749658274013,-1262.812813,0.00019671,2]
[365410847,1749658274023,-490.0,0.00019671,2]
[365410848,1749658274037,-490.0,0.00019671,2]
[365410849,1749658274046,-490.0,0.00019671,2]
[365410850,1749658274056,-490.0,0.00019671,2]
[365410851,1749658274065,-187.378348,0.00019671,2]
[365410852,1749658274076,-1060.76,0.00019671,2]
[365410853,1749658274086,-490.0,0.00019671,2]
[365410854,1749658274095,-490.0,0.00019671,2]
[365410855,1749658274105,-316.18161645,0.00019671,2]
[365410856,1749658274114,-490.0,0.00019671,2]
[365410857,1749658274123,-490.0,0.00019671,2]
[365410858,1749658274132,-490.0,0.00019671,2]
[365410859,1749658274141,-490.0,0.00019671,2]
[365410860,1749658274151,-490.0,0.00019671,2]
[365410861,1749658274159,-490.0,0.00019671,2]
[365410862,1749658274169,-855.41,0.00019671,2]
[365410863,1749658274185,-490.0,0.00019671,2]
[365410864,1749658274197,-952.2,0.00019671,2]
[365410865,1749658274206,-490.0,0.00019671,2]
[365410866,1749658274216,-490.0,0.00019671,2]
[365410867,1749658274225,-490.0,0.00019671,2]
[365410868,1749658274235,-938.137937,0.00019671,2]
[365410869,1749658274244,-490.0,0.00019671,2]
[365410870,1749658274254,-490.0,0.00019671,2]
[365410871,1749658274263,-490.0,0.00019671,2]
[365410872,1749658274272,-490.0,0.00019671,2]
[365410873,1749658274285,-647.64,0.00019671,2]
[365410874,1749658274294,-490.0,0.00019671,2]
[365410875,1749658274304,-490.0,0.00019671,2]
[365410876,1749658274314,-1180.86,0.00019671,2]
[365410877,1749658274323,-490.0,0.00019671,2]
[365410878,1749658274332,-490.0,0.00019671,2]
[365410879,1749658274341,-490.0,0.00019671,2]
[365410880,1749658274351,-254.26046775,0.00019671,2]
[365410881,1749658274361,-490.0,0.00019671,2]
[365410882,1749658274370,-490.0,0.00019671,2]
[365410883,1749658274379,-550.72,0.00019671,2]
[365410884,1749658274389,-490.0,0.00019671,2]
[365410885,1749658274398,-1197.02,0.00019671,2]
[365410886,1749658274407,-490.0,0.00019671,2]
[365410887,1749658274417,-490.0,0.00019671,2]
[365410888,1749658274426,-490.0,0.00019671,2]
[365410889,1749658274435,-490.0,0.00019671,2]
[365410890,1749658274444,-490.0,0.00019671,2]
[365410891,1749658274454,-490.0,0.00019671,2]
[365410892,1749658274463,-490.0,0.00019671,2]
[365410893,1749658274472,-490.0,0.00019671,2]
[365410894,1749658274482,-1496.58,0.00019671,2]
[365410895,1749658274491,-490.0,0.00019671,2]
[365410896,1749658274500,-490.0,0.00019671,2]